[Event "Tata Steel GCT Blitz 2019"]
[Site "Kolkata"]
[Date "2019.11.26"]
[Round "12"]
[White "Ding, Liren"]
[Black "Giri, Anish"]
[Result "1/2-1/2"]
[ECO "D38"]
[WhiteElo "2801"]
[BlackElo "2776"]
[Annotator "RC"]
[PlyCount "63"]
[EventDate "2019.11.25"]
[EventType "tourn"]
[EventCountry "IND"]
[SourceTitle "playchess.com"]
[Source "ChessBase"]
[SourceQuality "1"]
[TimeMode "Bronstein"]
[TimeControl "300+3"]

1. d4 {[%emt 0:00:00]} Nf6 {[%emt 0:00:00]} 2. c4 {[%emt 0:00:00]} e6 {[%emt 0:00:00]} 3. Nf3 d5 {[%emt 0:00:00]} 4. Nc3 {[%emt 0:00:00]} Bb4 {[%emt 0:00:00]} 5. Bg5 {[%emt 0:00:00]} h6 {[%emt 0:00:00]} 6. Bxf6 {[%emt 0:00:00]} Qxf6 {[%emt 0:00:00]} 7. Qa4+ {[%emt 0:00:00]} Nc6 {[%emt 0:00:00]} 8. e3 {[%emt 0:00:00]} O-O {[%emt 0:00:00]} 9. Be2 {[%emt 0:00:00]} dxc4 {[%emt 0:00:07]} 10. O-O {[%emt 0:00:00]} Bd7 {[%emt 0:00:03]} 11. Bxc4 {[%emt 0:00:00]} Bxc3 {[%emt 0:00:03]} 12. bxc3 Rfd8 {[%emt 0:00:04]} 13. Be2 {[%emt 0:00:00]} Be8 {[%emt 0:00:03]} 14. Qa3 {[%emt 0:00:00]} b6 {[%emt 0:00:03]} 15. e4 {[%emt 0:00:26]} Qe7 {[%emt 0:00:47]} 16. Qb2 {[%emt 0:00:19]} Na5 {[%emt 0:00:03]} 17. c4 {[%emt 0:00:03]} Qf6 {[%emt 0:00:03]} 18. Rad1 {[%emt 0:00:21]} c5 {[%emt 0:01:07]} 19. e5 {[%emt 0:00:03]} Qf4 {[%emt 0:00:05]} 20. dxc5 {[%emt 0:00:40]} Nxc4 {[%emt 0:00:21]} 21. Qc1 {[%emt 0:01:13]} Qxc1 {[%emt 0:00:05]} 22. Rxc1 {[%emt 0:00:03]} Na5 {[%emt 0:00:20]} 23. cxb6 {[%emt 0:00:08]} axb6 {[%emt 0:00:03]} 24. Rb1 {[%emt 0:00:03]} Nc6 {[%emt 0:00:07]} 25. Bc4 {[%emt 0:00:26]} b5 {[%emt 0:00:09]} 26. Bxb5 {[%emt 0:00:12]} Rxa2 {[%emt 0:00:03]} 27. Rfc1 {[%emt 0:00:03]} Ne7 {[%emt 0:00:08]} 28. Bxe8 {[%emt 0:00:03]} Rxe8 {[%emt 0:00:03]} 29. Rb7 {[%emt 0:00:21]} Nd5 {[%emt 0:00:08]} 30. g3 {[%emt 0:00:03]} Rea8 {[%emt 0:00:12]} 31. h4 {[%emt 0:00:03]} g6 {[%emt 0:00:08]} 32. Nd4 {[%emt 0:00:06]} 1/2-1/2